bitfinex-derivatives/quotes_BNBF0:USTF0_20250807
["timestamp","ask_amount","ask_price","bid_price","bid_amount"]
[1754587005354,0.85493094,774.84,774.02,0.86303622]
[1754587005555,0.85493094,774.83,774.03,0.86303622]
[1754587005755,0.85493094,774.82,774.04,0.86303622]
[1754587005954,0.85493094,774.81,774.04,0.86303622]
[1754587006155,0.85493094,774.8,774.04,0.86303622]
[1754587006355,0.85493094,774.79,774.04,0.86303622]
[1754587006558,0.85493094,774.78,774.03,0.86303622]
[1754587006753,0.85493094,774.77,774.02,0.86303622]
[1754587006952,0.85493094,774.76,774.02,0.86303622]
[1754587007154,0.85493094,774.75,774.03,0.86303622]
[1754587007352,0.85493094,774.74,774.01,0.86303622]
[1754587007554,0.85493094,774.73,774.01,0.86303622]
[1754587007755,0.85493094,774.72,774.03,0.86303622]
[1754587008055,1.109,774.86,774.03,0.86303622]
[1754587008256,0.85248627,774.85,774.02,0.86303622]
[1754587008456,0.85248627,774.84,774.01,0.86303622]
[1754587008657,0.85248627,774.83,774.01,0.86303622]
[1754587008858,0.8524388,774.82,774.01,0.86303622]
[1754587009057,0.8524388,774.81,774.0,0.86303622]
[1754587009357,0.8524388,774.8,774.0,0.86303622]
[1754587009559,0.8524388,774.79,773.99,0.86303622]
[1754587009858,0.8524388,774.78,774.0,0.86303622]
[1754587010153,0.8524388,774.78,773.85,1.1514583]
[1754587010154,0.8524388,774.77,773.99,0.86303622]
[1754587010353,0.8524388,774.76,773.99,0.86303622]
[1754587010657,0.8524388,774.75,773.98,0.86303622]
[1754587010857,0.8524388,774.74,773.98,0.86303622]
[1754587011058,0.8524388,774.73,773.97,0.86303622]
[1754587011257,0.8524388,774.72,773.96,0.86303622]
[1754587011553,0.8524388,774.71,773.95,0.86303622]
[1754587011753,0.85181807,774.7,773.94,0.86303622]
[1754587011953,0.85181807,774.69,773.94,0.86303622]
[1754587012254,1.109,774.86,773.94,0.86303622]
[1754587012454,0.85164237,774.85,773.93,0.86303622]
[1754587012654,0.85164237,774.84,773.94,0.86303622]
[1754587012954,0.85164237,774.83,773.94,0.86303622]
[1754587013154,0.85164237,774.82,773.94,0.86303622]
[1754587013355,0.85164237,774.81,773.91,0.86303622]
[1754587013558,0.85164237,774.8,773.89,0.86303622]
[1754587013756,0.85164237,774.79,773.86,0.86303622]
[1754587013954,0.85164237,774.78,773.79,0.86303622]
[1754587014155,0.85164237,774.77,773.8,0.86303622]
[1754587014455,0.85164237,774.76,773.79,0.86303622]
[1754587014660,0.85164237,774.75,773.79,0.86303622]
[1754587014856,0.85164237,774.74,773.79,0.86303622]
[1754587015061,0.85164237,774.73,773.79,0.86303622]
[1754587015356,0.85164237,774.72,773.78,0.86303622]
[1754587015561,0.85164237,774.71,773.78,0.86303622]
[1754587015859,1.109,774.86,773.78,0.86303622]
[1754587015860,0.85164237,774.7,773.78,0.86303622]
[1754587016057,0.85164237,774.69,773.76,0.86303622]
[1754587016255,0.85085976,774.68,773.76,0.86303622]
[1754587016460,0.85085976,774.67,773.75,0.86303622]
[1754587016656,0.85085976,774.66,773.75,0.86303622]
[1754587016957,0.85085976,774.65,773.7,0.86303622]
[1754587017157,0.85085976,774.64,773.63,0.86303622]
[1754587017456,0.86202955,774.82,773.59,0.86303622]
[1754587017760,0.85039217,774.81,773.59,0.86303622]
[1754587018056,0.85039217,774.8,773.59,0.86303622]
[1754587018360,0.85039217,774.79,773.59,0.86303622]
[1754587018561,0.86202955,774.77,773.61,0.86303622]
[1754587018760,0.85039217,774.76,773.6,0.86303622]
[1754587018961,0.86202955,774.72,773.54,0.86303622]
[1754587019157,0.85039217,774.71,773.51,0.86303622]
[1754587019361,0.85039217,774.7,773.49,0.86303622]
[1754587019562,0.85039217,774.69,773.49,0.86303622]
[1754587019759,0.85039217,774.68,773.49,0.86303622]
[1754587019959,0.85039217,774.67,773.47,0.86303622]
[1754587020158,0.85039217,774.66,773.47,0.86303622]
[1754587020482,1.109,774.86,773.5,0.86303622]
[1754587020483,0.85039217,774.65,773.5,0.86303622]
[1754587020664,0.85039217,774.64,773.48,0.86303622]
[1754587020860,0.85039217,774.63,773.48,0.86303622]
[1754587021060,0.85039217,774.62,773.53,0.86303622]
[1754587021357,1.109,774.86,773.53,0.86303622]
[1754587021358,0.85039217,774.61,773.53,0.86303622]
[1754587021563,0.85039217,774.6,773.52,0.86303622]
[1754587021761,0.85039217,774.59,773.52,0.86303622]
[1754587021961,0.85039217,774.58,773.52,0.86303622]
[1754587022264,0.85039217,774.57,773.5,0.86303622]
[1754587022465,0.85039217,774.56,773.51,0.86303622]
[1754587022761,0.85039217,774.55,773.51,0.86303622]
[1754587022961,0.85039217,774.54,773.51,0.86303622]
[1754587023265,0.85039217,774.53,773.58,0.86303622]
[1754587023463,0.85039217,774.52,773.58,0.86303622]
[1754587023661,1.109,774.86,773.58,0.86303622]
[1754587023968,0.84921483,774.85,773.58,0.86303622]
[1754587024162,0.84921483,774.84,773.57,0.86303622]
[1754587024364,0.84921483,774.83,773.57,0.86303622]
[1754587024567,0.84921483,774.82,773.57,0.86303622]
[1754587024768,0.84921483,774.81,773.57,0.86303622]
[1754587024964,0.84921483,774.8,773.57,0.86303622]
[1754587025163,1.109,774.86,773.58,0.86303622]
[1754587025463,0.84915317,774.85,773.58,0.86303622]
[1754587025664,0.84915317,774.84,773.58,0.86303622]
[1754587025863,0.84908214,774.83,773.58,0.86303622]
[1754587026062,1.109,774.86,773.55,0.86303622]
[1754587026063,0.84908214,774.82,773.55,0.86303622]
[1754587026263,0.84908214,774.81,773.54,0.86303622]
[1754587026464,1.109,774.86,773.52,0.86303622]
[1754587026465,0.84897047,774.8,773.52,0.86303622]
[1754587026669,0.84897047,774.79,773.52,0.86303622]
[1754587026866,0.84897047,774.78,773.52,0.86303622]
[1754587027070,0.84897047,774.77,773.52,0.86303622]
[1754587027266,0.84897047,774.76,773.51,0.86303622]
[1754587027465,0.84897047,774.75,773.51,0.86303622]
[1754587027669,0.84897047,774.74,773.52,0.86303622]
[1754587027872,0.84897047,774.73,773.54,0.86303622]
[1754587028170,0.84897047,774.72,773.53,0.86303622]
[1754587028467,0.84897047,774.71,773.53,0.86303622]
[1754587028667,0.84897047,774.7,773.53,0.86303622]
[1754587028866,0.84897047,774.69,773.53,0.86303622]
[1754587029070,0.84897047,774.68,773.53,0.86303622]
[1754587029268,0.84897047,774.67,773.53,0.86303622]
[1754587029566,0.84897047,774.66,773.56,0.86303622]
[1754587029765,0.84897047,774.65,773.56,0.86303622]
[1754587029971,0.84897047,774.64,773.56,0.86303622]
[1754587030171,0.894,774.65,773.56,0.86303622]
[1754587030172,0.84897047,774.63,773.56,0.86303622]
[1754587030369,0.84897047,774.62,773.56,0.86303622]
[1754587030569,0.84897047,774.61,773.56,0.86303622]
[1754587030767,0.84897047,774.6,773.56,0.86303622]
[1754587030969,0.84897047,774.59,773.56,0.86303622]
[1754587031173,0.84897047,774.58,773.56,0.86303622]
[1754587031373,0.84897047,774.57,773.56,0.86303622]
[1754587031568,0.84897047,774.56,773.56,0.86303622]
[1754587031774,0.84897047,774.55,773.56,0.86303622]
[1754587031979,0.84897047,774.54,773.56,0.86303622]
[1754587032177,0.84897047,774.53,773.56,0.86303622]
[1754587032473,0.894,774.65,773.56,0.86303622]
[1754587032671,0.84883156,774.64,773.56,0.86303622]
[1754587032875,0.84883156,774.63,773.6,0.86303622]
[1754587033083,0.894,774.65,773.71,0.86303622]
[1754587033383,0.894,774.65,773.74,0.86303622]
[1754587033881,0.894,774.65,773.75,0.86303622]
[1754587034276,0.894,774.65,773.51,1.1514583]
[1754587034576,0.894,774.65,773.39,0.22462192]
[1754587034577,0.894,774.65,773.76,0.86251135]
[1754587034777,0.894,774.65,773.75,0.86251135]
[1754587035474,0.894,774.65,773.76,0.86251135]
[1754587036582,0.894,774.65,773.77,0.86251135]
[1754587037575,0.894,774.65,773.78,0.86251135]
[1754587037875,0.894,774.65,773.79,0.86251135]
[1754587038078,0.894,774.65,773.8,0.86251135]
[1754587038591,0.894,774.65,773.81,0.86251135]
[1754587040681,0.894,774.65,773.82,0.86251135]
[1754587041382,0.894,774.65,773.84,0.86251135]
[1754587041876,1.1,774.93,773.84,0.86251135]
[1754587042180,0.85088608,774.92,773.84,0.86251135]
[1754587042481,0.85088608,774.91,773.85,0.86251135]
[1754587042778,0.85120508,774.9,773.85,0.86251135]
[1754587042982,0.85120508,774.89,773.85,0.86251135]
[1754587043182,0.85120508,774.88,773.85,0.86251135]
[1754587043482,0.85120508,774.87,773.87,0.86251135]
[1754587043783,0.85120508,774.86,773.97,0.86251135]
[1754587044084,1.72320508,774.85,773.97,0.86251135]
[1754587044383,0.85120508,774.84,773.98,0.86251135]
[1754587045684,0.85120508,774.84,773.97,0.86251135]
[1754587046085,0.85120508,774.84,773.96,0.86251135]
[1754587046281,0.85120508,774.84,773.95,0.86251135]
[1754587046486,0.85120508,774.84,773.96,0.86251135]
[1754587046683,0.872,774.85,773.96,0.86251135]
[1754587046888,0.85234784,774.84,773.96,0.86251135]
[1754587047183,0.85234784,774.83,773.97,0.86251135]
[1754587047382,0.85234784,774.82,773.97,0.86251135]
[1754587047582,0.85234784,774.81,773.97,0.86251135]
[1754587047782,0.85234784,774.8,773.97,0.86251135]
[1754587048086,0.872,774.85,773.97,0.86251135]
[1754587048286,0.8527923,774.84,773.97,0.86251135]
[1754587048486,0.8527923,774.83,773.98,0.86251135]
[1754587048788,0.8527923,774.82,773.98,0.86251135]
[1754587048983,0.8527923,774.81,773.98,0.86251135]
[1754587049182,0.8527923,774.8,773.98,0.86251135]
[1754587049384,0.8527923,774.79,773.99,0.86251135]
[1754587049686,0.872,774.85,774.01,0.86251135]
[1754587049886,0.85304877,774.84,774.01,0.86251135]
[1754587050085,0.85304877,774.83,774.01,0.86251135]
[1754587050283,0.85304877,774.82,774.05,0.86251135]
[1754587050484,0.85304877,774.81,774.06,0.86251135]
[1754587050787,0.85304877,774.8,774.06,0.86251135]
[1754587050987,0.85304877,774.79,774.06,0.86251135]
[1754587051188,0.85304877,774.78,774.05,0.86251135]
[1754587051393,0.872,774.85,774.05,0.86251135]
[1754587051592,0.872,774.85,774.06,0.86251135]
[1754587051795,0.85317963,774.84,774.07,0.86251135]
[1754587051994,0.85317963,774.83,774.07,0.86251135]
[1754587052194,0.85322159,774.82,774.07,0.86251135]
[1754587052392,0.872,774.85,774.06,0.86251135]
[1754587052603,0.85328313,774.84,774.06,0.86251135]
[1754587052791,0.85328088,774.83,774.08,0.86251135]
[1754587053103,0.872,774.85,774.07,0.86251135]
[1754587053493,0.872,774.85,774.08,0.86251135]
[1754587053793,0.872,774.85,774.18,0.86251135]
[1754587054301,0.872,774.85,774.17,0.86251135]
[1754587054302,0.801,774.84,774.17,0.86251135]
[1754587054591,0.801,774.84,774.18,0.86251135]
[1754587055192,0.801,774.84,774.17,0.86251135]
[1754587055392,0.801,774.84,774.18,0.86251135]
[1754587055992,0.801,774.84,774.19,0.86251135]
[1754587056198,0.801,774.84,774.18,0.86251135]
[1754587056398,0.801,774.84,774.19,0.86251135]
[1754587057298,0.801,774.84,774.18,0.86251135]
[1754587057698,0.801,774.84,774.19,0.86251135]
[1754587058699,0.801,774.84,774.12,0.86251135]
[1754587058898,0.801,774.84,774.22,0.86251135]
[1754587059100,0.801,774.84,774.21,0.86251135]
[1754587060206,0.801,774.84,773.75,1.7271874]
[1754587060207,0.801,774.84,774.2,0.86251135]
[1754587061002,0.801,774.84,774.21,0.86251135]
[1754587061298,0.801,774.84,774.2,0.86251135]
[1754587063303,0.801,774.84,774.19,0.86251135]
[1754587064098,0.801,774.84,774.18,0.86251135]
[1754587065709,0.801,774.84,774.17,0.86251135]
[1754587066502,0.801,774.84,774.18,0.86251135]
[1754587066702,0.801,774.84,774.19,0.86251135]
[1754587067100,0.801,774.84,774.18,0.86251135]
[1754587067803,0.801,774.84,774.17,0.86251135]
[1754587068701,0.801,774.84,774.24,0.86251135]
[1754587068898,0.801,774.84,774.23,0.86251135]
[1754587071707,0.801,774.84,774.25,0.86251135]
[1754587072003,1.249,774.83,774.25,0.86251135]
[1754587072708,1.249,774.83,774.22,0.86251135]
[1754587072906,1.249,774.83,774.23,0.86251135]
[1754587073104,1.249,774.83,774.21,0.86251135]
[1754587074409,1.249,774.83,774.22,0.86251135]
[1754587074609,1.249,774.83,774.25,0.86251135]
[1754587075210,1.249,774.83,774.24,0.86251135]
[1754587076010,1.249,774.83,774.23,0.86251135]
[1754587076409,1.249,774.83,774.22,0.86251135]
[1754587076812,1.249,774.83,774.21,0.86251135]
[1754587078506,1.249,774.83,774.22,0.86251135]
[1754587082212,1.249,774.83,774.23,0.86251135]
[1754587082718,1.249,774.83,774.24,0.86251135]
[1754587083014,1.249,774.83,774.13,0.86251135]
[1754587083214,1.249,774.83,774.11,0.86251135]
[1754587083718,1.249,774.83,774.1,0.86251135]
[1754587083930,1.249,774.83,774.03,0.86251135]
[1754587084419,1.249,774.83,773.96,0.86251135]
[1754587084618,1.249,774.83,773.97,0.86251135]
[1754587084813,1.249,774.83,773.96,0.86251135]
[1754587085017,1.249,774.83,773.95,0.86251135]
[1754587085216,1.249,774.83,773.94,0.86251135]
[1754587085719,0.85409652,774.82,773.94,0.86251135]
[1754587085915,0.85409652,774.81,773.77,0.86251135]
[1754587086118,0.85407639,774.8,773.77,0.86251135]
[1754587086318,0.85407639,774.79,773.77,0.86251135]
[1754587086519,0.85407639,774.78,773.78,0.86251135]
[1754587086719,0.85407639,774.77,773.78,0.86251135]
[1754587086920,0.85407639,774.76,773.79,0.86251135]
[1754587087119,0.85407639,774.75,773.79,0.86251135]
[1754587087317,0.85407639,774.74,773.8,0.86251135]
[1754587087621,0.85407639,774.73,773.79,0.86251135]
[1754587087816,0.85407639,774.72,773.79,0.86251135]
[1754587088021,0.85407639,774.71,773.79,0.86251135]
[1754587088222,0.85407639,774.7,773.8,0.86251135]
[1754587088423,1.249,774.83,773.79,0.86251135]
[1754587088623,0.85421201,774.82,773.79,0.86251135]
[1754587088822,0.85421201,774.81,773.79,0.86251135]
[1754587089122,0.85421201,774.8,773.79,0.86251135]
[1754587089323,0.85421201,774.79,773.79,0.86251135]
[1754587089521,0.85421201,774.78,773.79,0.86251135]
[1754587089719,0.85421201,774.77,773.79,0.86251135]
[1754587089920,0.85421201,774.77,773.6,1.1514583]
[1754587089921,0.85421201,774.76,773.78,0.86251135]
[1754587090116,0.85421201,774.75,773.75,0.86251135]
[1754587090316,0.85421201,774.75,773.73,0.86251135]
[1754587090620,0.8594792,774.66,773.64,0.86251135]
[1754587090922,0.85421201,774.65,773.63,0.86251135]
[1754587091120,0.85421201,774.64,773.63,0.86251135]
[1754587091319,0.85421201,774.63,773.65,0.86251135]
[1754587091523,0.85421201,774.62,773.63,0.86251135]
[1754587091722,0.85421201,774.61,773.63,0.86251135]
[1754587091919,0.85421201,774.6,773.63,0.86251135]
[1754587092123,0.85421201,774.59,773.64,0.86251135]
[1754587092324,0.85421201,774.58,773.62,0.86251135]
[1754587092620,0.85421201,774.57,773.62,0.86251135]
[1754587092824,0.85421201,774.56,773.62,0.86251135]
[1754587093025,0.85421201,774.55,773.62,0.86251135]
[1754587093222,0.85421201,774.54,773.62,0.86251135]
[1754587093521,0.85421201,774.53,773.64,0.86251135]
[1754587093723,0.85421201,774.52,773.64,0.86251135]
[1754587093920,0.85421201,774.51,773.6,0.86251135]
[1754587094220,0.8594792,774.61,773.56,0.86251135]
[1754587094425,0.85351664,774.6,773.54,0.86251135]
[1754587094721,0.8594792,774.56,773.52,0.86251135]
[1754587094925,0.85301921,774.55,773.51,0.86251135]
[1754587095121,0.85301921,774.54,773.51,0.86251135]
[1754587095322,0.8594792,774.52,773.39,1.08713327]
[1754587095521,0.85301921,774.51,773.39,1.08713327]
[1754587095820,1.71249841,774.5,773.39,0.22462192]
[1754587096022,1.71249841,774.49,773.39,0.22462192]
[1754587096223,0.85301921,774.48,773.39,0.22462192]
[1754587096425,0.8594792,774.44,773.39,0.22462192]
[1754587096722,0.8594792,774.36,773.39,0.22462192]
[1754587096928,0.8594792,774.3,773.39,0.22462192]
[1754587097222,0.85150507,774.29,773.39,0.22462192]
[1754587097427,0.85150507,774.28,773.39,0.22462192]
[1754587097627,0.85150507,774.27,773.39,0.22462192]
[1754587097825,0.85150507,774.26,773.39,0.22462192]
[1754587098024,0.85150507,774.25,773.39,0.22462192]
[1754587098325,0.8594792,774.34,773.39,0.22462192]
[1754587098326,0.85150507,774.24,773.39,0.22462192]
[1754587098522,0.85150507,774.23,773.39,0.22462192]
[1754587098823,0.85150507,774.22,773.39,0.22462192]
[1754587099025,0.85150507,774.21,773.39,0.22462192]
[1754587099223,0.85150507,774.2,773.39,0.22462192]
[1754587099422,0.85150507,774.19,773.39,0.22462192]
[1754587099626,0.85150507,774.18,773.39,0.22462192]
[1754587099926,0.85150507,774.17,773.39,0.22462192]
[1754587100128,0.85150507,774.16,773.39,0.22462192]
[1754587100324,0.85150507,774.15,773.39,0.22462192]
[1754587100523,0.85150507,774.14,773.39,0.22462192]
[1754587100822,0.85150507,774.13,773.39,0.22462192]
[1754587101127,0.85150507,774.12,773.39,0.22462192]
[1754587101327,0.85150507,774.11,773.39,0.22462192]
[1754587101527,0.85150507,774.1,773.39,0.22462192]
[1754587101727,0.85150507,774.09,773.39,0.22462192]
[1754587101926,0.85150507,774.08,773.39,0.22462192]
[1754587102223,0.8594792,774.43,773.39,0.22462192]
[1754587102224,0.85150507,774.07,773.39,0.22462192]
[1754587102526,0.85150507,774.06,773.39,0.22462192]
[1754587102725,0.85150507,774.05,773.39,0.22462192]
[1754587102924,0.8594792,774.44,773.39,0.22462192]
[1754587103123,0.84780576,774.43,773.39,0.22462192]
[1754587103324,0.84780576,774.42,772.96,0.86251135]
[1754587103526,0.84780576,774.41,773.27,0.22487811]
[1754587103728,0.84780576,774.4,773.27,0.22487811]
[1754587103930,0.84780576,774.39,773.27,0.22487811]
[1754587104124,0.84780576,774.38,773.27,0.22487811]
[1754587104325,0.84780576,774.37,773.27,0.22487811]
[1754587104628,1.214,774.47,772.87,0.86251135]
[1754587104629,0.84780576,774.36,772.87,0.86251135]
[1754587104925,0.84780576,774.35,772.89,0.86251135]
[1754587105129,0.84780576,774.35,772.74,1.1514583]
[1754587105130,0.84780576,774.34,772.85,0.86251135]
[1754587105330,0.84780576,774.33,772.99,0.22493116]
[1754587105629,1.214,774.47,772.99,0.22493116]
[1754587105630,0.84780576,774.32,772.99,0.22493116]
[1754587105830,0.84780576,774.31,772.99,0.22493116]
[1754587106128,0.8594792,774.24,772.99,0.22493116]
[1754587106331,0.8594792,774.2,772.99,0.22493116]
[1754587106526,0.8594792,774.14,772.99,0.22493116]
[1754587106729,0.84780576,774.13,772.99,0.22493116]
[1754587107028,0.84519043,774.12,772.99,0.22493116]
[1754587107226,0.84519043,774.11,772.99,0.22493116]
[1754587107430,0.84519043,774.1,772.99,0.22493116]
[1754587107630,0.84519043,774.09,772.99,0.22493116]
[1754587107933,0.84519043,774.08,772.99,0.22493116]
[1754587108133,0.84519043,774.07,772.99,0.22493116]
[1754587108426,1.214,774.47,772.99,0.22493116]
[1754587108427,0.84519043,774.06,772.99,0.22493116]
[1754587108728,0.84519043,774.05,772.99,0.22493116]
[1754587108928,0.84519043,774.04,772.99,0.22493116]
[1754587109231,0.84519043,774.03,772.99,0.22493116]
[1754587109429,0.84519043,774.02,772.99,0.22493116]
[1754587109631,0.84519043,774.01,772.99,0.22493116]
[1754587109928,0.84519043,774.0,772.99,0.22493116]
[1754587110128,0.84519043,773.99,772.99,0.22493116]
[1754587110431,0.84519043,773.98,772.99,0.22493116]
[1754587110629,0.84519043,773.97,772.99,0.22493116]
[1754587110832,0.84519043,773.96,772.99,0.22493116]
[1754587111028,0.84519043,773.95,772.99,0.22493116]
[1754587111231,0.84519043,773.94,772.99,0.22493116]
[1754587111529,0.84519043,773.93,772.99,0.22493116]
[1754587111732,0.84218283,773.92,772.99,0.22493116]
[1754587111927,0.84218283,773.91,772.99,0.22493116]
[1754587112128,0.84217003,773.9,772.99,0.22493116]
[1754587112333,0.8594792,774.33,772.99,0.22493116]
[1754587112533,0.8416621,774.32,772.99,0.22493116]
[1754587112730,0.8416621,774.31,772.99,0.22493116]
[1754587112933,0.8416621,774.3,772.31,0.86251135]
[1754587113231,0.8416621,774.29,772.89,0.22499006]
[1754587113429,0.8416621,774.28,772.29,0.86251135]
[1754587113630,0.8416621,774.27,772.29,0.86251135]
[1754587113833,1.214,774.47,772.84,0.22499879]
[1754587113834,0.8416621,774.26,772.84,0.22499879]
[1754587114034,0.8416621,774.25,772.84,0.22499879]
[1754587114234,0.8416621,774.24,772.84,0.22499879]
[1754587114436,0.8416621,774.23,772.84,0.22499879]
[1754587114631,0.8416621,774.22,772.84,0.22499879]
[1754587114831,0.8416621,774.21,772.84,0.22499879]
[1754587115032,0.8416621,774.2,772.84,0.22499879]
[1754587115236,0.8416621,774.19,772.84,0.22499879]
[1754587115437,0.8416621,774.18,772.84,0.22499879]
[1754587115634,0.8416621,774.17,772.84,0.22499879]
[1754587115933,0.8416621,774.16,772.84,0.22499879]
[1754587116137,0.8416621,774.15,772.12,0.86251135]
[1754587116336,0.8416621,774.14,772.09,0.86251135]
[1754587116533,0.8416621,774.13,772.68,0.22504535]
[1754587116837,0.8416621,774.12,772.06,0.86251135]
[1754587117133,0.8416621,774.11,772.68,0.22504971]
[1754587117332,0.8416621,774.1,771.94,0.86251135]
[1754587117534,0.8416621,774.09,772.57,0.22504535]
[1754587117738,0.8416621,774.08,771.96,0.86251135]
[1754587118038,0.8416621,774.07,772.65,0.22504826]
[1754587118235,0.8416621,774.06,772.01,0.86251135]
[1754587118434,0.8416621,774.05,772.7,0.2250468]
[1754587118631,0.8416621,774.04,772.7,0.2250468]
[1754587118837,0.8416621,774.03,772.05,0.86251135]
[1754587119133,0.8416621,774.02,772.75,0.22503734]
[1754587119338,0.8416621,774.01,772.07,0.86251135]
[1754587119538,0.8416621,774.0,772.06,0.86251135]
[1754587119732,0.8416621,773.99,772.06,0.86251135]
[1754587119936,0.8416621,773.98,772.07,0.86251135]
[1754587120135,0.8416621,773.97,772.08,0.86251135]
[1754587120437,0.83822486,773.96,772.54,0.2250388]
[1754587120635,0.83822486,773.95,772.54,0.2250388]
[1754587120834,0.83822486,773.94,772.54,0.2250388]
[1754587121038,1.214,774.47,772.54,0.2250388]
[1754587121039,0.8594792,774.4,772.54,0.2250388]
[1754587121240,1.69755054,774.39,772.54,0.2250388]
[1754587121538,1.214,774.47,772.54,0.2250388]
[1754587121539,0.83807134,774.38,772.54,0.2250388]
[1754587121739,0.83807134,774.37,772.54,0.2250388]
[1754587121940,0.83807134,774.36,772.54,0.2250388]
[1754587122140,0.83807134,774.35,772.54,0.2250388]
[1754587122438,0.83807134,774.34,772.54,0.2250388]
[1754587122740,0.83807134,774.33,772.54,0.2250388]
[1754587123040,0.83807134,774.32,772.54,0.2250388]
[1754587123240,0.83768871,774.31,772.54,0.2250388]
[1754587123438,0.83768871,774.3,772.54,0.2250388]
[1754587123637,0.83768871,774.29,772.54,0.2250388]
[1754587123840,0.83768871,774.28,772.54,0.2250388]
[1754587124038,0.83768871,774.27,772.54,0.2250388]
[1754587124237,0.83768871,774.26,772.54,0.2250388]
[1754587124442,0.83768871,774.25,772.54,0.2250388]
[1754587124744,0.83768871,774.24,772.54,0.2250388]
[1754587125042,0.83768871,774.23,772.54,0.2250388]
[1754587125238,0.83768871,774.22,772.54,0.2250388]
[1754587125542,0.83768871,774.21,772.54,0.2250388]
[1754587125742,0.83768871,774.2,772.54,0.2250388]
[1754587125939,0.83768871,774.19,772.54,0.2250388]
[1754587126140,0.83768871,774.18,772.54,0.2250388]
[1754587126340,0.83768871,774.17,772.54,0.2250388]
[1754587126545,0.83768871,774.16,772.54,0.2250388]
[1754587126746,0.83768871,774.15,772.54,0.2250388]
[1754587127039,0.83768871,774.14,772.54,0.2250388]
[1754587127238,0.83768871,774.13,772.54,0.2250388]
[1754587127438,0.83768871,774.12,772.54,0.2250388]
[1754587127642,0.83768871,774.11,772.54,0.2250388]
[1754587127939,0.83768871,774.1,772.54,0.2250388]
[1754587128140,0.83768871,774.09,772.54,0.2250388]
[1754587128339,0.83768871,774.08,772.54,0.2250388]
[1754587128544,0.83768871,774.07,772.54,0.2250388]
[1754587128742,0.83768871,774.06,772.54,0.2250388]
[1754587128944,0.83786335,774.05,772.54,0.2250388]
[1754587129141,0.83786335,774.04,772.54,0.2250388]
[1754587129345,0.83786335,774.03,772.54,0.2250388]
[1754587129542,0.83786335,774.02,772.54,0.2250388]
[1754587129747,0.83786335,774.01,772.54,0.2250388]
[1754587129948,0.842,774.04,772.54,0.2250388]
[1754587130146,0.83801931,774.03,772.54,0.2250388]
[1754587130343,0.83801931,774.02,772.54,0.2250388]
[1754587130545,0.83801931,774.01,772.54,0.2250388]
[1754587130743,0.83801931,774.0,772.54,0.2250388]
[1754587130942,0.842,774.04,772.54,0.2250388]
[1754587131141,0.83820338,774.03,772.54,0.2250388]
[1754587131343,0.842,774.04,772.54,0.2250388]
[1754587134246,0.83963168,774.03,772.54,0.2250388]
[1754587134444,0.842,774.04,772.54,0.2250388]
[1754587134743,0.83963168,774.03,772.54,0.2250388]
[1754587134946,0.842,774.04,772.54,0.2250388]
[1754587135146,0.83963667,774.03,772.54,0.2250388]
[1754587135346,0.83963667,774.02,772.54,0.2250388]
[1754587135547,0.83963667,774.01,772.54,0.2250388]
[1754587135747,0.842,774.04,772.54,0.2250388]
[1754587135945,0.84010689,774.03,772.54,0.2250388]
[1754587136144,0.84010689,774.02,772.54,0.2250388]
[1754587136343,0.84010689,774.01,772.54,0.2250388]
[1754587136546,0.84010689,774.0,772.54,0.2250388]
[1754587136746,0.84010689,773.99,772.54,0.2250388]
[1754587136946,0.84010689,773.98,772.54,0.2250388]
[1754587137149,0.84010689,773.97,772.54,0.2250388]
[1754587137354,0.84010689,773.96,772.54,0.2250388]
[1754587137551,0.842,774.04,772.54,0.2250388]
[1754587137751,0.84114335,774.03,772.54,0.2250388]
[1754587137952,0.84114335,774.02,772.54,0.2250388]
[1754587138151,0.8411433,774.01,772.54,0.2250388]
[1754587138350,0.8411433,774.0,772.54,0.2250388]
[1754587138558,0.8411433,773.99,772.54,0.2250388]
[1754587138757,0.8411433,773.98,772.54,0.2250388]
[1754587138953,0.8411433,773.97,772.54,0.2250388]
[1754587139254,0.8411433,773.96,772.54,0.2250388]
[1754587139454,0.8411433,773.95,772.54,0.2250388]
[1754587139658,0.8411433,773.94,772.54,0.2250388]
[1754587139955,0.8411433,773.93,772.54,0.2250388]
[1754587140157,0.8411433,773.92,772.54,0.2250388]
[1754587140354,0.842,774.04,772.54,0.2250388]
[1754587140355,0.8411433,773.91,772.54,0.2250388]
[1754587140558,0.8411433,773.9,772.54,0.2250388]
[1754587140853,0.84237262,773.89,772.54,0.2250388]
[1754587141053,0.84237262,773.88,772.54,0.2250388]
[1754587141254,0.84237262,773.87,772.54,0.2250388]
[1754587141557,0.84237262,773.86,772.54,0.2250388]
[1754587141759,0.84237262,773.85,772.54,0.2250388]
[1754587142059,0.84237262,773.84,772.54,0.2250388]
[1754587142259,0.84237262,773.83,772.54,0.2250388]
[1754587142459,0.842,774.04,772.54,0.2250388]
[1754587142657,0.84392383,774.03,772.54,0.2250388]
[1754587142857,0.842,774.04,772.54,0.2250388]